bitfinex/quotes_SOLUSD_20251223
["timestamp","ask_amount","ask_price","bid_price","bid_amount"]
[1766499679022,0.68,123.22,123.16,14.82]
[1766499679228,0.68,123.22,123.17,0.69]
[1766499679849,8.7959776,123.22,123.17,0.69]
[1766499680144,0.68,123.21,123.15,23.62994686]
[1766499680350,0.68,123.21,123.16,0.69]
[1766499681128,0.68,123.21,123.17,0.69]
[1766499681835,0.68,123.19,123.14,8.12070673]
[1766499682060,0.68,123.19,123.15,0.69]
[1766499684251,8.79761465,123.19,123.15,0.69]
[1766499685029,0.68,123.19,123.15,8.8101536]
[1766499685250,8.11719295,123.2,123.16,0.69]
[1766499686051,19.23258004,123.23,123.17,0.69]
[1766499686253,33.17767304,123.24,123.17,0.69]
[1766499686429,8.79436748,123.24,123.17,0.69]
[1766499687239,0.68,123.24,123.17,0.69]
[1766499687734,0.68,123.25,123.17,0.69]
[1766499687922,8.11424862,123.24,123.2,0.69]
[1766499688647,8.79372649,123.25,123.2,0.69]
[1766499689249,8.79372649,123.25,123.16,10.43767296]
[1766499689250,8.11372649,123.25,123.16,10.43767296]
[1766499689455,0.68,123.24,123.18,0.69]
[1766499690244,8.11490708,123.23,123.18,8.11817025]
[1766499690542,8.11490708,123.23,123.19,0.69]
[1766499690947,8.79454766,123.24,123.19,0.69]
[1766499692531,0.68,123.24,123.2,0.69]
[1766499693255,8.11390375,123.25,123.2,0.69]
[1766499693435,8.78390375,123.25,123.2,0.69]
[1766499694250,0.67,123.25,123.21,0.68]
[1766499694452,18.55085089,123.26,123.21,0.68]
[1766499694453,8.78317793,123.26,123.21,0.68]
[1766499695857,0.67,123.25,123.21,0.68]
[1766499696033,0.67,123.25,123.2,14.82]
[1766499696355,0.67,123.25,123.2,15.5]
[1766499696663,0.67,123.25,123.21,0.68]
[1766499697340,49.40244674,123.26,123.21,0.68]
[1766499697540,29.12011671,123.26,123.21,0.68]
[1766499697740,8.82317793,123.26,123.21,0.68]
[1766499699949,28.39550796,123.26,123.21,0.68]
[1766499700156,0.71,123.25,123.21,0.68]
[1766499700963,0.71,123.25,123.19,0.66]
[1766499701160,18.55495558,123.25,123.2,0.66]
[1766499701351,0.71,123.24,123.2,0.66]
[1766499702366,8.82466004,123.24,123.2,0.66]
[1766499703441,8.11393869,123.25,123.21,0.66]
[1766499704442,8.82393869,123.25,123.21,0.66]
[1766499706467,0.71,123.24,123.19,23.59743405]
[1766499706655,0.71,123.24,123.2,0.66]
[1766499707562,10.43767296,123.21,123.12,8.12214771]
[1766499707746,14.82,123.2,123.13,0.66]
[1766499708546,14.82000001,123.19,123.13,0.66]
[1766499709457,8.118201,123.18,123.13,0.66]
[1766499709963,18.55587396,123.18,123.11,0.66]
[1766499710164,10.43767296,123.17,123.11,0.66]
[1766499710669,10.43767296,123.17,123.12,0.66]
[1766499711558,18.55676533,123.17,123.12,0.66]
[1766499712559,10.43767296,123.17,123.13,0.66]
[1766499712764,8.11770019,123.19,123.13,0.66]
[1766499712969,22.93770019,123.19,123.13,0.66]
[1766499713772,22.93770019,123.19,123.14,0.66]
[1766499718365,43.23155521,123.19,123.14,0.66]
[1766499720365,28.41155521,123.19,123.14,0.66]
[1766499720764,22.94265514,123.18,123.14,0.66]
[1766499721956,8.11886011,123.17,123.14,0.66]
[1766499722482,8.11886011,123.17,123.11,14.82]
[1766499722483,28.41601039,123.17,123.11,14.82]
[1766499722688,28.41601039,123.17,123.12,0.66]
[1766499722979,8.11886011,123.17,123.12,0.66]
[1766499730493,8.11886011,123.17,123.12,8.78173721]
[1766499730794,8.11886011,123.17,123.13,0.7]
[1766499734380,20.29608959,123.18,123.13,0.7]
[1766499736683,20.06608959,123.18,123.13,0.7]
[1766499740298,8.117542,123.19,123.14,0.7]
[1766499741978,25.27767296,123.22,123.15,14.82]
[1766499742196,8.11424862,123.24,123.19,0.7]
[1766499742393,28.39987017,123.24,123.19,0.7]
[1766499742591,43.23987017,123.24,123.19,0.7]
[1766499742792,43.23987017,123.24,123.17,0.7]
[1766499743203,0.5,123.23,123.17,0.2]
[1766499744404,8.61556565,123.22,123.17,0.2]
[1766499745801,28.40337282,123.23,123.17,0.2]
[1766499746099,0.5,123.22,123.17,0.2]
[1766499747912,8.61622433,123.21,123.17,0.2]
[1766499749590,20.78461883,123.25,123.18,0.7]
[1766499749896,8.11424862,123.24,123.19,0.7]
[1766499750085,8.61424862,123.24,123.19,0.7]
[1766499751319,8.11305842,123.26,123.2,14.82]
[1766499751618,8.11305842,123.26,123.21,0.7]
[1766499751802,0.5,123.25,123.21,0.7]
[1766499752516,0.5,123.25,123.19,0.7]
[1766499753208,8.11424862,123.24,123.19,0.7]
[1766499754698,8.61424862,123.24,123.19,0.7]
[1766499754898,0.5,123.23,123.16,0.68]
[1766499755299,0.5,123.21,123.16,0.68]
[1766499758002,8.61667449,123.21,123.16,0.68]
[1766499758336,8.61667449,123.21,123.16,8.11945164]
[1766499758500,8.61667449,123.21,123.17,0.7]
[1766499760239,20.28891413,123.22,123.17,0.7]
[1766499760442,20.78891413,123.22,123.17,0.7]
[1766499763332,20.78891413,123.22,123.18,0.7]
[1766499763333,8.61592885,123.22,123.18,0.7]
[1766499765537,0.5,123.21,123.16,0.7]
[1766499767130,0.5,123.21,123.17,0.7]
[1766499767435,8.6168543,123.21,123.17,0.7]
[1766499770605,8.1168543,123.21,123.18,0.7]
[1766499770803,10.43767296,123.23,123.18,0.7]
[1766499770804,8.11582156,123.22,123.18,0.7]
[1766499771047,8.61582156,123.22,123.18,0.7]
[1766499771336,0.5,123.18,123.12,0.7]
[1766499771529,0.5,123.18,123.13,0.7]
[1766499771733,0.5,123.18,123.14,0.7]
[1766499771925,0.5,123.18,123.12,8.12183031]
[1766499772230,0.5,123.18,123.13,0.7]
[1766499772443,8.61886011,123.17,123.13,0.7]
[1766499773035,0.5,123.17,123.13,8.82145278]
[1766499773428,0.5,123.17,123.14,0.7]
[1766499773634,8.61847444,123.18,123.14,0.7]
[1766499780622,0.5,123.17,123.13,0.7]
[1766499780825,0.5,123.17,123.1,0.7]
[1766499780826,0.5,123.16,123.1,0.7]
[1766499781028,0.5,123.16,123.08,0.70000001]
[1766499781220,10.93767296,123.14,123.08,8.12477452]
[1766499781410,25.75767296,123.14,123.09,0.7]
[1766499781816,33.87853839,123.14,123.09,8.12391471]
[1766499782016,33.87853839,123.14,123.1,0.7]
[1766499782231,19.05853839,123.14,123.1,0.7]
[1766499782836,43.45969337,123.14,123.1,0.7]
[1766499783347,19.05853839,123.14,123.1,0.7]
[1766499784345,8.12047638,123.15,123.1,8.12332583]
[1766499784527,8.12047638,123.15,123.11,0.7]
[1766499785045,8.62047638,123.15,123.11,0.7]
[1766499790422,8.62047638,123.15,123.08,20.31132439]
[1766499790423,0.5,123.14,123.08,8.78451124]
[1766499790622,0.5,123.14,123.08,0.66000001]
[1766499790924,0.5,123.14,123.09,0.66]
[1766499791444,0.5,123.14,123.09,8.78405789]
[1766499791641,0.5,123.14,123.1,0.66]
[1766499792033,0.5,123.14,123.09,0.66]
[1766499792233,8.12141987,123.14,123.09,0.66]
[1766499792544,0.5,123.13,123.09,0.66]
[1766499796958,8.12141987,123.14,123.1,0.66]
[1766499797649,8.62141987,123.14,123.1,0.66]
[1766499801160,33.01966329,123.15,123.11,0.66]
[1766499801564,22.95973743,123.16,123.11,0.66]
[1766499801743,8.11973743,123.16,123.11,0.66]
[1766499802061,8.61973743,123.16,123.11,0.66]
[1766499803648,8.61973743,123.16,123.12,0.66]
[1766499804669,0.5,123.16,123.12,0.66]
[1766499804866,16.2426328,123.17,123.12,0.66]
[1766499805167,8.11919055,123.17,123.12,0.66]
[1766499805345,47.85166424,123.18,123.12,0.66]
[1766499805539,8.61844556,123.18,123.12,0.66]
[1766499805741,0.5,123.17,123.13,0.66]
[1766499808271,8.61844556,123.18,123.13,0.66]
[1766499809166,8.61844556,123.18,123.14,0.66]
[1766499809372,10.43767296,123.19,123.14,0.66]
[1766499809552,18.55527379,123.19,123.14,0.66]
[1766499810075,0.5,123.18,123.12,23.60184144]
[1766499810258,0.5,123.18,123.13,0.66]
[1766499811773,8.11886011,123.17,123.13,0.66]
[1766499813660,8.61886011,123.17,123.13,0.66]
[1766499816070,8.61825067,123.18,123.14,0.7]
[1766499816474,0.5,123.18,123.14,8.12074423]
[1766499816653,18.5555177,123.19,123.15,0.67]
[1766499816975,19.0555177,123.19,123.15,0.67]
[1766499817461,0.5,123.18,123.14,0.67]
[1766499818346,8.11886011,123.17,123.14,0.67]
[1766499818876,8.61845926,123.18,123.14,0.67]
[1766499823571,0.5,123.14,123.08,0.67000001]
[1766499823771,0.5,123.14,123.1,0.67]
[1766499824876,8.12083807,123.14,123.1,0.67]
[1766499828086,33.87790944,123.15,123.1,0.67]
[1766499828267,19.05790943,123.15,123.1,0.67]
[1766499829301,19.05790943,123.15,123.09,0.67]
[1766499829662,24.39718619,123.16,123.1,0.67]
[1766499829866,0.5,123.16,123.12,0.67]
[1766499830164,0.5,123.15,123.12,0.67]
[1766499831169,24.39718619,123.16,123.12,0.67]
[1766499831170,8.12013993,123.16,123.12,0.67]
[1766499831792,8.12013993,123.16,123.12,8.12213042]
[1766499831976,8.12013993,123.16,123.13,0.67]
[1766499832169,8.61907752,123.17,123.13,0.67]
[1766499835196,32.5135438,123.18,123.13,8.12122274]
[1766499835390,8.61834153,123.18,123.14,0.67]
[1766499838598,0.5,123.17,123.13,0.67]
[1766499839798,8.6193168,123.17,123.13,0.67]
[1766499848490,0.5,123.17,123.13,0.67]
[1766499850513,8.61904989,123.17,123.13,0.67]
[1766499850705,8.118201,123.18,123.14,0.72]
[1766499851411,8.618201,123.18,123.14,0.72]
[1766499852190,20.2898638,123.22,123.15,14.82]
[1766499852390,8.61490708,123.23,123.18,0.72]
[1766499852605,0.5,123.22,123.18,0.72]
[1766499854514,8.11622433,123.21,123.18,0.72]
[1766499854716,8.61622433,123.21,123.18,0.72]
[1766499854895,8.11622433,123.21,123.16,8.11948855]
[1766499855100,8.61622433,123.21,123.17,0.72]
[1766499858609,8.11622433,123.21,123.17,0.72]
[1766499859117,8.61585123,123.22,123.18,0.72]
[1766499859315,8.61437534,123.24,123.18,0.72]
[1766499859514,14.84,123.26,123.18,0.72]
[1766499859698,10.93767296,123.23,123.18,0.72]
[1766499860310,10.43767296,123.23,123.18,0.72]
[1766499860516,0.5,123.22,123.18,0.72]
[1766499861422,8.61615804,123.22,123.18,0.72]
[1766499862315,8.11512073,123.23,123.18,8.11812462]
[1766499862524,8.61512073,123.23,123.19,0.72]
[1766499866616,0.5,123.23,123.19,0.72]
[1766499866822,0.5,123.23,123.15,14.82]
[1766499866823,0.5,123.22,123.17,0.72]
[1766499867829,8.61622433,123.21,123.17,0.72]
[1766499868197,8.11622433,123.21,123.17,0.72]
[1766499868512,0.5,123.2,123.15,0.72]
[1766499868721,0.5,123.19,123.15,0.72]
[1766499869106,0.5,123.19,123.14,8.12066066]
[1766499869299,0.5,123.19,123.15,0.72]
[1766499870018,8.61796565,123.19,123.15,0.72]
[1766499870213,0.5,123.18,123.15,0.72]
[1766499870397,0.5,123.18,123.13,0.72]
[1766499871614,0.5,123.18,123.12,0.72]
[1766499872240,8.61886011,123.17,123.12,0.72]
[1766499875134,0.5,123.17,123.12,0.72]
[1766499876938,0.5,123.17,123.12,8.84202838]
[1766499877232,8.61887729,123.17,123.13,0.69]
[1766499880046,8.61850866,123.18,123.14,0.69]
[1766499882440,8.11850866,123.18,123.14,0.69]
[1766499882945,8.61850866,123.18,123.14,0.69]
[1766499886258,19.0554768,123.19,123.15,0.69]
[1766499887389,39.34933182,123.19,123.15,0.69]
[1766499889262,28.91165886,123.19,123.15,0.69]
[1766499889462,8.61780384,123.19,123.15,0.69]
[1766499889771,8.11717686,123.2,123.16,0.69]
[1766499891160,8.11653918,123.21,123.17,0.69]
[1766499892066,8.11556565,123.22,123.17,0.69]
[1766499892669,8.61556565,123.22,123.17,8.11878807]
[1766499892860,8.61556565,123.22,123.18,0.69]
[1766499893359,8.11556565,123.22,123.18,0.69]
[1766499900156,8.61556565,123.22,123.18,0.69]
[1766499901266,8.11556565,123.22,123.18,0.69]
[1766499901468,8.61556565,123.22,123.18,0.69]
[1766499902675,8.11556565,123.22,123.18,0.69]
[1766499903073,28.90314531,123.23,123.18,0.69]
[1766499903278,14.82,123.22,123.18,0.69]
[1766499905587,22.93603239,123.22,123.18,0.69]
[1766499905790,23.43603239,123.22,123.18,0.69]
[1766499907180,0.5,123.21,123.18,0.69]
[1766499907387,0.5,123.21,123.17,0.66]
[1766499908086,23.43603239,123.22,123.17,0.66]
[1766499909082,0.5,123.21,123.15,8.12006303]
[1766499909282,0.5,123.21,123.16,0.66]
[1766499909488,20.30262501,123.2,123.16,0.66]
[1766499909785,20.80262501,123.2,123.16,0.66]
[1766499910889,0.5,123.19,123.16,0.66]
[1766499911264,23.44002685,123.19,123.14,10.43767296]
[1766499911472,23.44002685,123.19,123.15,0.66]
[1766499911678,0.5,123.18,123.15,0.66]
[1766499913975,0.5,123.18,123.13,0.66]
[1766499914164,24.39321868,123.17,123.13,0.66]
[1766499914869,0.5,123.18,123.13,0.66]
[1766499915291,8.11886011,123.17,123.13,0.66]
[1766499915964,32.51207879,123.17,123.13,0.66]
[1766499918779,8.11886011,123.17,123.13,0.66]
[1766499919186,8.11886472,123.17,123.14,0.66]
[1766499919394,24.39321868,123.17,123.14,0.66]
[1766499919871,8.61835753,123.18,123.14,0.66]
[1766499920072,33.00959294,123.18,123.14,0.66]
[1766499920811,32.50959294,123.18,123.14,0.66]
[1766499922113,32.50959294,123.18,123.15,0.66]
[1766499924183,11.12044621,123.19,123.16,0.66]
[1766499924999,8.61761029,123.19,123.16,0.66]
[1766499925208,11.62044621,123.19,123.16,0.66]
[1766499925575,34.56124219,123.19,123.16,0.66]
[1766499927004,34.56124219,123.19,123.14,22.94079598]
[1766499927210,34.56124219,123.19,123.15,0.66]
[1766499929604,0.5,123.17,123.14,14.82]
[1766499929774,0.5,123.17,123.14,0.66]
[1766499929974,3.50283592,123.18,123.14,0.66]
[1766499930401,3.50283592,123.17,123.14,0.66]
[1766499930705,3.00283592,123.17,123.14,0.66]
[1766499934299,3.50283592,123.16,123.13,0.66]
[1766499934499,3.50283592,123.16,123.11,10.43767296]
[1766499934500,3.50283592,123.14,123.11,0.66]
[1766499934803,3.00283592,123.14,123.11,0.66]
[1766499935007,3.00283592,123.14,123.12,0.66]
[1766499935500,3.50283592,123.15,123.12,0.66]
[1766499937004,31.93165282,123.16,123.12,0.66]
[1766499937879,20.30927825,123.16,123.13,0.69]
[1766499938212,11.62186038,123.17,123.13,0.69]
[1766499938504,31.93113863,123.17,123.13,0.69]
[1766499939581,28.92830271,123.17,123.13,0.69]
[1766499939782,31.93113863,123.17,123.13,0.69]
[1766499944679,11.62117836,123.18,123.14,0.71]
[1766499945085,36.01241377,123.18,123.14,0.71]
[1766499949488,3.00283592,123.17,123.14,0.71]
[1766499950006,0.5,123.14,123.1,11.14767296]
[1766499950208,3.00283592,123.13,123.1,0.71]
[1766499950508,3.00283592,123.11,123.08,0.71000001]
[1766499950808,3.00283592,123.09,123.08,0.71000001]
[1766499951004,26.04404815,123.1,123.08,0.71000001]
[1766499951206,3.00283592,123.11,123.08,0.71000001]
[1766499951598,17.92283592,123.11,123.08,0.71000001]
[1766499952414,8.12215724,123.12,123.09,0.71]
[1766499952794,23.04215724,123.12,123.09,0.71]
[1766499952996,11.12448598,123.13,123.1,0.71]
[1766499953394,34.16991104,123.13,123.1,0.71]
[1766499953991,11.12392906,123.14,123.1,0.71]
[1766499954410,19.2486313,123.14,123.1,0.71]
[1766499955015,19.7486313,123.14,123.1,0.71]
[1766499955592,3.00283592,123.13,123.1,0.71]
[1766499956315,11.12443467,123.13,123.1,0.71]
[1766499957592,8.12450957,123.12,123.1,0.71]
[1766499958521,16.24687929,123.12,123.1,0.71]
[1766499961820,8.12171766,123.13,123.1,0.71]
[1766499962120,26.44455358,123.13,123.1,0.71]
[1766499962318,23.44171766,123.13,123.1,0.71]
[1766499962517,22.94171766,123.13,123.1,0.71]
[1766499962817,11.12455358,123.13,123.1,0.71]
[1766499963113,3.50283592,123.12,123.08,15.53000001]
[1766499963504,3.50283592,123.12,123.09,0.71]
[1766499964315,11.62516745,123.12,123.09,0.71]
[1766499964617,8.12233153,123.12,123.09,0.71]
[1766499965518,8.12163167,123.13,123.1,0.71]
[1766499968020,11.6239946,123.14,123.1,0.71]
[1766499971325,0.5,123.13,123.1,0.71]
[1766499971510,31.42608977,123.14,123.1,0.71]
[1766499972024,31.92608977,123.14,123.1,0.71]
[1766499972813,31.42608977,123.14,123.1,0.71]
[1766499973527,23.65018105,123.15,123.11,0.72]
[1766499973825,8.12018104,123.15,123.12,0.72]
[1766499974605,8.11918039,123.17,123.13,0.72]
[1766499974822,11.12201631,123.17,123.13,0.72]
[1766499975006,11.62201631,123.17,123.13,0.72]
[1766499975826,8.11918039,123.17,123.14,0.72]
[1766499976325,10.43767296,123.19,123.16,0.72]
[1766499976326,22.96243833,123.19,123.16,0.72]
[1766499976509,8.11785204,123.19,123.16,0.72]
[1766499976712,8.11688311,123.2,123.17,0.72]
[1766499977423,8.61688311,123.2,123.16,1.92207614]
[1766499977726,30.83116704,123.2,123.16,0.72]
[1766499980028,10.53895925,123.2,123.16,0.72]
[1766499980230,8.61688311,123.2,123.17,0.72]
[1766499980437,10.53895925,123.2,123.17,0.72]
[1766499981431,10.53843959,123.21,123.17,0.72]
[1766499981733,10.53843959,123.21,123.19,0.72]
[1766499981734,8.11636345,123.21,123.19,0.72]
[1766499986230,8.11636345,123.21,123.17,1.92207614]
[1766499986406,8.11636345,123.21,123.18,0.72]
[1766499986606,8.11636345,123.21,123.18,2.64207614]
[1766499986808,8.11570373,123.22,123.19,0.72]
[1766499987338,1.92207614,123.23,123.19,0.72]
[1766499987339,8.11495516,123.23,123.2,0.72]
[1766499988118,10.53653721,123.24,123.2,0.72]
[1766499988311,8.61446107,123.24,123.21,0.72]
[1766499988512,10.53653721,123.24,123.21,0.72]
[1766499989022,8.11446107,123.24,123.21,0.72]
[1766499989223,8.61407234,123.25,123.21,1.92207614]
[1766499989414,8.61407234,123.25,123.22,0.72]
[1766499989616,10.53614848,123.25,123.22,0.72]
[1766499990343,10.43767296,123.26,123.22,10.03752279]
[1766499990639,2.42207614,123.28,123.22,10.43767296]
[1766499990931,1.92207614,123.25,123.2,8.11664588]
[1766499991131,0.5,123.25,123.21,0.72]
[1766499991334,43.40850466,123.29,123.23,1.92207614]
[1766499991535,10.73318604,123.29,123.25,0.72]
[1766499992135,8.8111099,123.29,123.25,0.72]
[1766499992340,8.11227387,123.27,123.23,10.43767296]
[1766499992544,8.11227387,123.27,123.22,8.11549409]
[1766499992545,10.03435001,123.27,123.24,0.72]
[1766499992844,8.31100531,123.29,123.25,1.92207614]
[1766499993036,8.31100531,123.29,123.26,0.72]
[1766499995136,0.2,123.29,123.26,0.72]
[1766499995353,0.2,123.29,123.28,0.7]
[1766499995539,0.2,123.3,123.29,0.7]
[1766499997038,0.2,123.31,123.29,0.7]
[1766499998036,8.97970554,123.31,123.28,14.82]
[1766499998243,8.97970554,123.31,123.28,15.52]
[1766499998623,0.2,123.31,123.27,12.3597491]
[1766499998824,0.2,123.31,123.28,1.92207614]
[1766499999131,0.2,123.31,123.29,0.7]
[1766500000342,0.2,123.32,123.29,1.92207614]
[1766500000515,0.2,123.32,123.3,0.7]
[1766500000721,0.2,123.32,123.3,1.92207614]
[1766500000923,0.2,123.32,123.31,0.7]
[1766500001123,0.2,123.32,123.29,0.7]
[1766500001329,0.2,123.32,123.3,0.7]
[1766500003431,10.2311396,123.32,123.28,0.7]
[1766500003634,8.97906346,123.32,123.28,15.52]
[1766500003837,10.9011396,123.32,123.28,15.52]
[1766500004027,10.9011396,123.32,123.29,0.7]
[1766500004929,2.79207614,123.32,123.29,0.7]
[1766500005138,2.12207614,123.32,123.29,0.7]
[1766500005340,0.2,123.32,123.29,0.7]
[1766500005737,0.2,123.32,123.29,2.62207614]
[1766500005938,0.2,123.32,123.3,0.7]
[1766500006950,8.30900489,123.32,123.3,0.7]
[1766500007240,8.30900489,123.32,123.29,17.44207614]
[1766500007444,10.23108103,123.32,123.29,0.7]
[1766500007647,10.90108103,123.32,123.28,17.44207614]
[1766500007848,10.90108103,123.32,123.29,0.7]
[1766500008350,0.2,123.32,123.29,0.7]
[1766500010329,0.67,123.29,123.24,0.7]
[1766500010535,1.92207614,123.26,123.24,0.7]
[1766500013651,1.92207614,123.25,123.24,0.7]
[1766500015654,0.48207614,123.25,123.24,0.7]
[1766500016033,0.48207614,123.25,123.22,18.55294295]
[1766500016233,0.67,123.22,123.18,0.36]
[1766500016456,1.92207614,123.2,123.18,0.36]
[1766500016842,8.11504271,123.23,123.16,14.82]
[1766500016843,1.92207614,123.19,123.16,14.82]
[1766500017044,1.92207614,123.18,123.16,14.82]
[1766500017839,2.59207614,123.2,123.16,15.18]
[1766500018041,1.92207614,123.19,123.16,15.18]
[1766500018355,1.92207614,123.18,123.16,15.18]
[1766500019252,1.92207614,123.19,123.16,23.29931076]
[1766500019455,1.92207614,123.19,123.16,8.47931076]
[1766500019962,8.11674721,123.21,123.16,14.82]
[1766500019963,0.67,123.21,123.16,14.82]
[1766500020132,2.59207614,123.19,123.16,14.82]
[1766500020331,1.92207614,123.17,123.14,10.43767296]
[1766500020535,2.59207614,123.17,123.14,33.37825253]
[1766500020937,1.92207614,123.17,123.14,33.37825253]
[1766500021753,1.92207614,123.17,123.14,14.82]
[1766500023464,1.92207614,123.16,123.13,8.12124913]
[1766500023657,8.11898834,123.17,123.12,33.37963533]
[1766500023964,1.92207614,123.15,123.12,10.43767296]
[1766500024149,2.59207614,123.15,123.12,14.82]
[1766500025650,0.67,123.16,123.12,22.94190391]
[1766500025850,0.67,123.18,123.12,24.86398005]
[1766500026056,1.92207614,123.17,123.12,24.86398005]
[1766500026254,2.59207614,123.17,123.12,24.86398005]
[1766500028143,1.92207614,123.16,123.12,14.82]
[1766500028350,1.92207614,123.16,123.1,10.43767296]
[1766500028351,2.60207614,123.13,123.09,8.12393175]
[1766500028550,2.60207614,123.13,123.1,22.94346129]
[1766500029264,2.60207614,123.13,123.08,20.484354]
[1766500029462,1.92207614,123.12,123.09,14.82]
[1766500030066,0.68,123.15,123.09,14.82]
[1766500030256,0.68,123.15,123.1,8.12345562]
[1766500030257,2.60207614,123.14,123.1,8.12345562]
[1766500030458,1.92207614,123.13,123.09,22.94391502]
[1766500030662,2.60207614,123.13,123.09,14.82]
[1766500032282,2.60207614,123.13,123.09,24.86611049]
[1766500033783,2.60207614,123.12,123.1,14.82]
[1766500035469,0.68,123.12,123.1,14.82]
[1766500038486,3.00537156,123.14,123.1,25.94864979]
[1766500038786,3.68537156,123.14,123.1,25.94864979]
[1766500039586,11.11767296,123.17,123.1,46.25734191]
[1766500039774,0.68,123.14,123.11,3.00537156]
[1766500040079,0.68,123.16,123.12,17.82537156]
[1766500041080,3.68537156,123.16,123.12,17.82537156]
[1766500042073,3.00537156,123.16,123.12,25.94702977]
[1766500042381,3.68537156,123.14,123.1,8.12333418]
[1766500042584,3.00537156,123.12,123.09,14.82]
[1766500042962,3.00537156,123.1,123.08,1e-08]
[1766500043162,3.00537156,123.1,123.08,14.82000001]
[1766500043878,3.68537156,123.1,123.08,14.82000001]
[1766500045163,3.68537156,123.1,123.08,1e-08]
[1766500045382,3.68537156,123.1,123.08,14.82000001]
[1766500046288,0.68,123.1,123.08,14.82000001]
[1766500046479,3.00537156,123.12,123.08,22.94469315]
[1766500046667,0.7,123.11,123.08,14.82000001]
[1766500046858,3.00537156,123.1,123.08,1e-08]
[1766500047064,3.00537156,123.1,123.08,14.82000001]
[1766500047263,3.70537156,123.11,123.08,14.82000001]
[1766500047873,3.70537156,123.11,123.08,22.94473827]
[1766500048266,3.70537156,123.11,123.08,14.82000001]
[1766500049180,3.70537156,123.11,123.08,1e-08]
[1766500049484,3.70537156,123.11,123.08,14.82000001]
[1766500050381,0.7,123.11,123.08,22.9447172]
[1766500050585,0.7,123.12,123.08,25.95008876]
[1766500051586,3.70537156,123.12,123.08,22.9447172]
[1766500051788,0.7,123.08,123.07,0.1]
[1766500051981,3.70537156,123.08,123.05,14.82]
[1766500052181,3.00537156,123.07,123.05,14.82]
[1766500052369,0.7,123.08,123.05,14.82]
[1766500053767,11.82842133,123.11,123.06,3.00537156]
[1766500053974,11.82842133,123.11,123.07,14.84]
[1766500054492,8.82304977,123.11,123.07,14.84]
[1766500054672,0.7,123.09,123.07,14.84]
[1766500054875,0.7,123.09,123.05,11.13206306]
[1766500055075,3.70537156,123.09,123.07,14.84]
[1766500055281,3.70537156,123.09,123.05,8.1266915]
[1766500055476,3.70537156,123.09,123.06,14.84]
[1766500055679,0.7,123.09,123.06,14.84]
[1766500060288,0.72,123.08,123.04,11.23241728]
[1766500060488,0.72,123.08,123.05,14.84]
[1766500062077,0.72,123.08,123.04,11.23241728]
[1766500062281,0.72,123.08,123.05,14.84]
[1766500062504,0.72,123.08,123.04,11.23241728]
[1766500062700,0.72,123.08,123.05,14.84]
[1766500066887,0.72,123.08,123.04,11.23241728]
[1766500067087,0.72,123.08,123.05,14.84]
[1766500067291,0.72,123.08,123.04,11.23241728]
[1766500067490,0.72,123.08,123.05,14.84]
[1766500068206,0.72,123.08,123.04,11.23241728]
[1766500068507,0.72,123.08,123.05,14.84]
[1766500068714,0.72,123.08,123.06,14.84]
[1766500070313,3.67537156,123.1,123.06,22.96607853]
[1766500070519,0.67,123.1,123.06,25.97145009]
[1766500071096,0.67,123.1,123.07,3.00537156]
[1766500071613,0.67,123.11,123.07,3.00537156]